[Event "Titled Tuesday Blitz May 9 Early 2023"]
[White "Zhigalko, Sergei"]
[Black "Nguyen, Ngoc Truong Son"]
[WhiteFideId "13502956"]
[BlackFideId "12401110"]
[WhiteElo "2626"]
[BlackElo "2556"]
[Result "1/2-1/2"]
[Round "09"]
[TimeControl "180+2"]
[Date "2023.05.09"]
[WhiteClock "0:00:04"]
[BlackClock "0:00:10"]

1. e4 {[%clk 0:03:00]}  c5 {[%clk 0:02:56]} 2. Nf3 {[%clk 0:02:59]}  Nc6 {[%clk 0:02:56]} 3. c3 {[%clk 0:03:00]}  Nf6 {[%clk 0:02:54]} 4. e5 {[%clk 0:03:00]}  Nd5 {[%clk 0:02:54]} 5. Bc4 {[%clk 0:03:01]}  Nb6 {[%clk 0:02:44]} 6. Bb3 {[%clk 0:03:01]}  c4 {[%clk 0:02:40]} 7. Bc2 {[%clk 0:03:01]}  d6 {[%clk 0:02:38]} 8. exd6 {[%clk 0:03:02]}  Qxd6 {[%clk 0:02:38]} 9. O-O {[%clk 0:03:03]}  g6 {[%clk 0:02:29]} 10. b3 {[%clk 0:03:01]}  Bg4 {[%clk 0:02:21]} 11. Re1 {[%clk 0:03:00]}  cxb3 {[%clk 0:01:48]} 12. axb3 {[%clk 0:02:59]}  Bg7 {[%clk 0:01:47]} 13. h3 {[%clk 0:02:47]}  Bxf3 {[%clk 0:01:46]} 14. Qxf3 {[%clk 0:02:48]}  O-O {[%clk 0:01:46]} 15. Na3 {[%clk 0:02:43]}  Rfe8 {[%clk 0:01:42]} 16. Nc4 {[%clk 0:02:39]}  Qd7 {[%clk 0:01:32]} 17. d4 {[%clk 0:01:44]}  Nd5 {[%clk 0:01:30]} 18. Be4 {[%clk 0:01:38]}  e6 {[%clk 0:01:26]} 19. Ba3 {[%clk 0:01:33]}  Bf8 {[%clk 0:01:05]} 20. Bxf8 {[%clk 0:01:30]}  Rxf8 {[%clk 0:01:05]} 21. Ne5 {[%clk 0:01:04]}  Qd6 {[%clk 0:01:05]} 22. Bxd5 {[%clk 0:00:59]}  exd5 {[%clk 0:01:00]} 23. Ng4 {[%clk 0:00:56]}  Kg7 {[%clk 0:00:57]} 24. Qe3 {[%clk 0:00:49]}  h5 {[%clk 0:00:46]} 25. Qh6+ {[%clk 0:00:46]}  Kg8 {[%clk 0:00:46]} 26. Ne5 {[%clk 0:00:29]}  Rfe8 {[%clk 0:00:26]} 27. f4 {[%clk 0:00:28]}  Qf8 {[%clk 0:00:21]} 28. Qg5 {[%clk 0:00:22]}  Kg7 {[%clk 0:00:14]} 29. f5 {[%clk 0:00:11]}  Qd6 {[%clk 0:00:13]} 30. fxg6 {[%clk 0:00:05]}  fxg6 {[%clk 0:00:11]} 31. Re3 {[%clk 0:00:02]}  Nxe5 {[%clk 0:00:10]} 32. dxe5 {[%clk 0:00:03]}  Qe7 {[%clk 0:00:10]} 33. Qg3 {[%clk 0:00:03]}  a6 {[%clk 0:00:07]} 34. e6 {[%clk 0:00:03]}  Rf8 {[%clk 0:00:06]} 35. Qe5+ {[%clk 0:00:03]}  Qf6 {[%clk 0:00:06]} 36. e7 {[%clk 0:00:02]}  Rfe8 {[%clk 0:00:07]} 37. Qxd5 {[%clk 0:00:02]}  Rxe7 {[%clk 0:00:06]} 38. Rxe7+ {[%clk 0:00:02]}  Qxe7 {[%clk 0:00:07]} 39. Rf1 {[%clk 0:00:02]}  Rf8 {[%clk 0:00:07]} 40. Qd4+ {[%clk 0:00:02]}  Kh7 {[%clk 0:00:07]} 41. Rxf8 {[%clk 0:00:03]}  Qxf8 {[%clk 0:00:08]} 42. Qd7+ {[%clk 0:00:03]}  Kh6 {[%clk 0:00:08]} 43. Qxb7 {[%clk 0:00:03]}  Qc5+ {[%clk 0:00:09]} 44. Kh1 {[%clk 0:00:03]}  Qxc3 {[%clk 0:00:09]} 45. Qxa6 {[%clk 0:00:03]}  Qc1+ {[%clk 0:00:09]} 46. Kh2 {[%clk 0:00:03]}  Qf4+ {[%clk 0:00:09]} 47. Kh1 {[%clk 0:00:04]}  Qc1+ {[%clk 0:00:09]} 48. Kh2 {[%clk 0:00:04]}  Qf4+ {[%clk 0:00:09]} 49. Kh1 {[%clk 0:00:04]}  Qc1+ {[%clk 0:00:10]} 1/2-1/2


[Site "https://www.chess.com"]

[Event "Titled Tuesday Blitz May 9 Early 2023"]
[White "Prohaszka, Peter"]
[Black "demon64fields"]
[WhiteFideId "726265"]
[WhiteElo "2626"]
[BlackElo "2914"]
[Result "0-1"]
[Round "09"]
[TimeControl "180+2"]
[Date "2023.05.09"]
[WhiteClock "0:00:00"]
[BlackClock "0:01:04"]

1. d4 {[%clk 0:03:00]}  g6 {[%clk 0:02:59]} 2. Nf3 {[%clk 0:02:55]}  Bg7 {[%clk 0:02:59]} 3. c3 {[%clk 0:02:53]}  Nf6 {[%clk 0:02:58]} 4. Bg5 {[%clk 0:02:52]}  O-O {[%clk 0:02:58]} 5. Nbd2 {[%clk 0:02:52]}  d5 {[%clk 0:02:59]} 6. e3 {[%clk 0:02:50]}  c5 {[%clk 0:02:59]} 7. Be2 {[%clk 0:02:42]}  Qb6 {[%clk 0:02:59]} 8. Qc1 {[%clk 0:02:22]}  Nc6 {[%clk 0:02:58]} 9. O-O {[%clk 0:02:20]}  Bf5 {[%clk 0:02:59]} 10. a4 {[%clk 0:02:05]}  Rfc8 {[%clk 0:02:55]} 11. a5 {[%clk 0:01:56]}  Nxa5 {[%clk 0:02:37]} 12. dxc5 {[%clk 0:01:56]}  Qd8 {[%clk 0:02:35]} 13. b4 {[%clk 0:01:51]}  Nc6 {[%clk 0:02:35]} 14. Nd4 {[%clk 0:01:11]}  h6 {[%clk 0:02:27]} 15. Bxf6 {[%clk 0:01:02]}  Bxf6 {[%clk 0:02:27]} 16. Nxf5 {[%clk 0:01:02]}  gxf5 {[%clk 0:02:28]} 17. Nb3 {[%clk 0:01:02]}  a5 {[%clk 0:02:16]} 18. b5 {[%clk 0:00:58]}  Ne5 {[%clk 0:02:15]} 19. Ra4 {[%clk 0:00:47]}  Nd7 {[%clk 0:01:59]} 20. e4 {[%clk 0:00:24]}  fxe4 {[%clk 0:01:50]} 21. Qxh6 {[%clk 0:00:22]}  Nxc5 {[%clk 0:01:47]} 22. Nxc5 {[%clk 0:00:21]}  Rxc5 {[%clk 0:01:48]} 23. Rd1 {[%clk 0:00:20]}  Qc7 {[%clk 0:01:33]} 24. g3 {[%clk 0:00:15]}  Qe5 {[%clk 0:01:31]} 25. Rad4 {[%clk 0:00:12]}  e6 {[%clk 0:01:25]} 26. f4 {[%clk 0:00:08]}  Bg7 {[%clk 0:01:23]} 27. Qh3 {[%clk 0:00:03]}  Qf6 {[%clk 0:01:19]} 28. c4 {[%clk 0:00:04]}  Qxd4+ {[%clk 0:01:11]} 29. Rxd4 {[%clk 0:00:03]}  Bxd4+ {[%clk 0:01:12]} 30. Kg2 {[%clk 0:00:04]}  dxc4 {[%clk 0:01:08]} 31. Qg4+ {[%clk 0:00:02]}  Bg7 {[%clk 0:01:08]} 32. Bd1 {[%clk 0:00:01]}  c3 {[%clk 0:01:05]} 33. Bc2 {[%clk 0:00:01]}  Rd8 {[%clk 0:01:05]} 34. Bxe4 {[%clk 0:00:01]}  c2 {[%clk 0:01:03]} 35. Bxc2 {[%clk 0:00:00]}  Rxc2+ {[%clk 0:01:04]} 0-1


[Site "https://www.chess.com"]

[Event "Titled Tuesday Blitz May 9 Early 2023"]
[White "Ter-Sahakyan, Samvel"]
[Black "Mekhitarian, Krikor Sevag"]
[WhiteFideId "13302531"]
[BlackFideId "2107660"]
[WhiteElo "2545"]
[BlackElo "2604"]
[Result "1-0"]
[Round "09"]
[TimeControl "180+2"]
[Date "2023.05.09"]
[WhiteClock "0:00:28"]
[BlackClock "0:00:02"]

1. d4 {[%clk 0:03:00]}  Nf6 {[%clk 0:02:58]} 2. c4 {[%clk 0:03:00]}  g6 {[%clk 0:02:59]} 3. Nc3 {[%clk 0:02:59]}  d5 {[%clk 0:02:59]} 4. cxd5 {[%clk 0:02:58]}  Nxd5 {[%clk 0:02:59]} 5. Bd2 {[%clk 0:02:57]}  Bg7 {[%clk 0:02:56]} 6. e4 {[%clk 0:02:57]}  Nb6 {[%clk 0:02:56]} 7. Be3 {[%clk 0:02:56]}  O-O {[%clk 0:02:56]} 8. a4 {[%clk 0:02:56]}  e5 {[%clk 0:02:39]} 9. d5 {[%clk 0:02:54]}  c6 {[%clk 0:02:30]} 10. a5 {[%clk 0:02:54]}  N6d7 {[%clk 0:02:30]} 11. Nf3 {[%clk 0:02:49]}  Nf6 {[%clk 0:02:26]} 12. Bc4 {[%clk 0:02:42]}  cxd5 {[%clk 0:02:23]} 13. Nxd5 {[%clk 0:02:40]}  Nxe4 {[%clk 0:02:09]} 14. O-O {[%clk 0:02:39]}  Nc6 {[%clk 0:02:08]} 15. Re1 {[%clk 0:02:33]}  Nd6 {[%clk 0:02:05]} 16. Bg5 {[%clk 0:02:19]}  Qd7 {[%clk 0:01:54]} 17. Ba2 {[%clk 0:02:19]}  e4 {[%clk 0:01:38]} 18. Nd2 {[%clk 0:02:19]}  Re8 {[%clk 0:01:19]} 19. Nf6+ {[%clk 0:02:02]}  Bxf6 {[%clk 0:01:19]} 20. Bxf6 {[%clk 0:02:03]}  Qf5 {[%clk 0:01:17]} 21. Bc3 {[%clk 0:01:59]}  Be6 {[%clk 0:01:17]} 22. Bb1 {[%clk 0:01:59]}  Bd5 {[%clk 0:01:11]} 23. Nf1 {[%clk 0:01:53]}  Qe6 {[%clk 0:01:08]} 24. Ne3 {[%clk 0:01:43]}  Bb3 {[%clk 0:01:08]} 25. Qg4 {[%clk 0:01:43]}  f5 {[%clk 0:00:57]} 26. Qe2 {[%clk 0:01:34]}  Ne5 {[%clk 0:00:53]} 27. Ra3 {[%clk 0:01:31]}  Bc4 {[%clk 0:00:39]} 28. Nxc4 {[%clk 0:01:28]}  Nexc4 {[%clk 0:00:39]} 29. Ba2 {[%clk 0:01:28]}  Rac8 {[%clk 0:00:38]} 30. Bb4 {[%clk 0:01:22]}  b5 {[%clk 0:00:31]} 31. axb6 {[%clk 0:01:22]}  axb6 {[%clk 0:00:32]} 32. Bxd6 {[%clk 0:01:21]}  Qxd6 {[%clk 0:00:33]} 33. Bxc4+ {[%clk 0:01:21]}  Kg7 {[%clk 0:00:33]} 34. Rd1 {[%clk 0:01:06]}  Qc5 {[%clk 0:00:28]} 35. Ra7+ {[%clk 0:01:05]}  Re7 {[%clk 0:00:27]} 36. Rxe7+ {[%clk 0:01:00]}  Qxe7 {[%clk 0:00:27]} 37. g3 {[%clk 0:01:00]}  Rc7 {[%clk 0:00:25]} 38. b3 {[%clk 0:01:00]}  Rd7 {[%clk 0:00:23]} 39. Qb2+ {[%clk 0:00:58]}  Kh6 {[%clk 0:00:23]} 40. Qc1+ {[%clk 0:00:50]}  Kg7 {[%clk 0:00:22]} 41. h4 {[%clk 0:00:50]}  Rxd1+ {[%clk 0:00:18]} 42. Qxd1 {[%clk 0:00:50]}  Qe5 {[%clk 0:00:18]} 43. Qd7+ {[%clk 0:00:47]}  Kh6 {[%clk 0:00:18]} 44. Bg8 {[%clk 0:00:45]}  Kh5 {[%clk 0:00:07]} 45. Qxh7+ {[%clk 0:00:35]}  Kg4 {[%clk 0:00:08]} 46. Kg2 {[%clk 0:00:33]}  Qf6 {[%clk 0:00:02]} 47. Bf7 {[%clk 0:00:28]} 1-0


[Site "https://www.chess.com"]

[Event "Titled Tuesday Blitz May 9 Early 2023"]
[White "Rodshtein, Maxim"]
[Black "Pranesh M"]
[WhiteFideId "2806851"]
[BlackFideId "35028600"]
[WhiteElo "2555"]
[BlackElo "2437"]
[Result "1-0"]
[Round "09"]
[TimeControl "180+2"]
[Date "2023.05.09"]
[WhiteClock "0:00:20"]
[BlackClock "0:00:00"]

1. d4 {[%clk 0:03:00]}  d5 {[%clk 0:02:58]} 2. Nf3 {[%clk 0:03:01]}  c6 {[%clk 0:02:57]} 3. e3 {[%clk 0:03:00]}  Nf6 {[%clk 0:02:58]} 4. c4 {[%clk 0:02:59]}  e6 {[%clk 0:02:57]} 5. b3 {[%clk 0:02:58]}  Nbd7 {[%clk 0:02:58]} 6. Bb2 {[%clk 0:02:57]}  Ne4 {[%clk 0:02:59]} 7. Bd3 {[%clk 0:02:57]}  f5 {[%clk 0:02:59]} 8. O-O {[%clk 0:02:56]}  Bd6 {[%clk 0:03:00]} 9. Nc3 {[%clk 0:02:56]}  O-O {[%clk 0:02:59]} 10. Ne2 {[%clk 0:02:56]}  Qf6 {[%clk 0:02:57]} 11. Qc1 {[%clk 0:02:38]}  g5 {[%clk 0:02:56]} 12. Ba3 {[%clk 0:02:36]}  g4 {[%clk 0:02:51]} 13. Bxe4 {[%clk 0:02:19]}  Bxa3 {[%clk 0:02:25]} 14. Qxa3 {[%clk 0:02:18]}  fxe4 {[%clk 0:02:24]} 15. Nd2 {[%clk 0:02:15]}  e5 {[%clk 0:02:16]} 16. cxd5 {[%clk 0:02:12]}  cxd5 {[%clk 0:02:16]} 17. Rac1 {[%clk 0:02:07]}  exd4 {[%clk 0:02:11]} 18. Nxd4 {[%clk 0:02:07]}  Ne5 {[%clk 0:02:12]} 19. Rc7 {[%clk 0:02:05]}  Rf7 {[%clk 0:01:42]} 20. Qc5 {[%clk 0:02:02]}  Nd3 {[%clk 0:01:30]} 21. Qxd5 {[%clk 0:01:59]}  Kg7 {[%clk 0:01:06]} 22. Nxe4 {[%clk 0:01:55]}  Qg6 {[%clk 0:01:04]} 23. Rxf7+ {[%clk 0:01:43]}  Qxf7 {[%clk 0:01:05]} 24. Qg5+ {[%clk 0:01:35]}  Qg6 {[%clk 0:01:03]} 25. Qe7+ {[%clk 0:01:24]}  Qf7 {[%clk 0:01:02]} 26. Qxf7+ {[%clk 0:01:22]}  Kxf7 {[%clk 0:01:03]} 27. Rd1 {[%clk 0:01:22]}  Ne5 {[%clk 0:01:02]} 28. Rc1 {[%clk 0:01:21]}  Bd7 {[%clk 0:00:59]} 29. Rc7 {[%clk 0:01:14]}  Kg6 {[%clk 0:00:56]} 30. Kf1 {[%clk 0:01:11]}  a5 {[%clk 0:00:51]} 31. Nc5 {[%clk 0:01:09]}  Be8 {[%clk 0:00:38]} 32. Re7 {[%clk 0:01:06]}  Nc6 {[%clk 0:00:32]} 33. Rxb7 {[%clk 0:00:58]}  Nb4 {[%clk 0:00:25]} 34. Rb6+ {[%clk 0:00:56]}  Kf7 {[%clk 0:00:24]} 35. a3 {[%clk 0:00:55]}  Nd5 {[%clk 0:00:25]} 36. Rb7+ {[%clk 0:00:55]}  Kg6 {[%clk 0:00:25]} 37. Ke2 {[%clk 0:00:51]}  Rc8 {[%clk 0:00:25]} 38. Nd3 {[%clk 0:00:51]}  Nc3+ {[%clk 0:00:22]} 39. Ke1 {[%clk 0:00:50]}  Ne4 {[%clk 0:00:23]} 40. f3 {[%clk 0:00:49]}  gxf3 {[%clk 0:00:23]} 41. gxf3 {[%clk 0:00:50]}  Ng5 {[%clk 0:00:23]} 42. Nf4+ {[%clk 0:00:48]}  Kh6 {[%clk 0:00:21]} 43. Rb6+ {[%clk 0:00:46]}  Kg7 {[%clk 0:00:20]} 44. h4 {[%clk 0:00:46]}  Nf7 {[%clk 0:00:19]} 45. Nf5+ {[%clk 0:00:45]}  Kh8 {[%clk 0:00:18]} 46. e4 {[%clk 0:00:43]}  Ne5 {[%clk 0:00:19]} 47. Kf2 {[%clk 0:00:43]}  Rc2+ {[%clk 0:00:14]} 48. Ke3 {[%clk 0:00:42]}  Rc8 {[%clk 0:00:07]} 49. Nd5 {[%clk 0:00:39]}  a4 {[%clk 0:00:07]} 50. f4 {[%clk 0:00:36]}  Ng4+ {[%clk 0:00:05]} 51. Kf3 {[%clk 0:00:36]}  Bh5 {[%clk 0:00:06]} 52. Ng3 {[%clk 0:00:36]}  Ne5+ {[%clk 0:00:06]} 53. Ke3 {[%clk 0:00:35]}  Ng4+ {[%clk 0:00:04]} 54. Kd4 {[%clk 0:00:35]}  Be8 {[%clk 0:00:04]} 55. bxa4 {[%clk 0:00:34]}  Nh2 {[%clk 0:00:02]} 56. a5 {[%clk 0:00:31]}  Nf3+ {[%clk 0:00:02]} 57. Ke3 {[%clk 0:00:31]}  Nxh4 {[%clk 0:00:03]} 58. a6 {[%clk 0:00:31]}  Ng2+ {[%clk 0:00:02]} 59. Kf3 {[%clk 0:00:31]}  Ne1+ {[%clk 0:00:03]} 60. Kg4 {[%clk 0:00:31]}  Bd7+ {[%clk 0:00:03]} 61. f5 {[%clk 0:00:31]}  Rg8+ {[%clk 0:00:03]} 62. Kh3 {[%clk 0:00:30]}  Nd3 {[%clk 0:00:03]} 63. a7 {[%clk 0:00:29]}  Nf2+ {[%clk 0:00:03]} 64. Kh2 {[%clk 0:00:29]}  Ng4+ {[%clk 0:00:03]} 65. Kg2 {[%clk 0:00:28]}  Ne5 {[%clk 0:00:02]} 66. Rb8 {[%clk 0:00:27]}  Bc6 {[%clk 0:00:02]} 67. Ne7 {[%clk 0:00:20]}  Bxe4+ {[%clk 0:00:00]} 68. Kf2 {[%clk 0:00:20]} 1-0


[Site "https://www.chess.com"]

[Event "Titled Tuesday Blitz May 9 Early 2023"]
[White "Costachi, Mihnea"]
[Black "Peng, Li Min"]
[WhiteFideId "1217518"]
[BlackFideId "14112620"]
[WhiteElo "2456"]
[BlackElo "2436"]
[Result "0-1"]
[Round "09"]
[TimeControl "180+2"]
[Date "2023.05.09"]
[WhiteClock "0:02:22"]
[BlackClock "0:02:10"]

1. Nc3 {[%clk 0:03:00]}  d5 {[%clk 0:02:57]} 2. d4 {[%clk 0:03:00]}  Nf6 {[%clk 0:02:55]} 3. Bf4 {[%clk 0:03:01]}  e6 {[%clk 0:02:56]} 4. e3 {[%clk 0:03:00]}  Bb4 {[%clk 0:02:55]} 5. Bd3 {[%clk 0:02:59]}  c5 {[%clk 0:02:56]} 6. Ne2 {[%clk 0:02:59]}  c4 {[%clk 0:02:55]} 7. O-O {[%clk 0:02:50]}  cxd3 {[%clk 0:02:52]} 8. cxd3 {[%clk 0:02:51]}  O-O {[%clk 0:02:51]} 9. Qb3 {[%clk 0:02:48]}  Nc6 {[%clk 0:02:42]} 10. a3 {[%clk 0:02:47]}  Bd6 {[%clk 0:02:41]} 11. Bg5 {[%clk 0:02:48]}  h6 {[%clk 0:02:39]} 12. Bh4 {[%clk 0:02:48]}  Be7 {[%clk 0:02:37]} 13. Rac1 {[%clk 0:02:48]}  Bd7 {[%clk 0:02:35]} 14. Qa2 {[%clk 0:02:36]}  a6 {[%clk 0:02:30]} 15. b4 {[%clk 0:02:36]}  Rc8 {[%clk 0:02:29]} 16. Rc2 {[%clk 0:02:33]}  b5 {[%clk 0:02:26]} 17. Rfc1 {[%clk 0:02:33]}  a5 {[%clk 0:02:24]} 18. Nxb5 {[%clk 0:02:32]}  axb4 {[%clk 0:02:21]} 19. a4 {[%clk 0:02:32]}  Qb6 {[%clk 0:02:21]} 20. Rb2 {[%clk 0:02:28]}  Na5 {[%clk 0:02:19]} 21. Rxc8 {[%clk 0:02:27]}  Rxc8 {[%clk 0:02:20]} 22. Bxf6 {[%clk 0:02:27]}  gxf6 {[%clk 0:02:18]} 23. h4 {[%clk 0:02:25]}  Bxb5 {[%clk 0:02:16]} 24. axb5 {[%clk 0:02:26]}  Qxb5 {[%clk 0:02:16]} 25. Qb1 {[%clk 0:02:26]}  b3 {[%clk 0:02:15]} 26. Nc1 {[%clk 0:02:24]}  Ba3 {[%clk 0:02:13]} 27. Rxb3 {[%clk 0:02:22]}  Nxb3 {[%clk 0:02:10]} 0-1


[Site "https://www.chess.com"]

[Event "Titled Tuesday Blitz May 9 Early 2023"]
[White "Rakotomaharo, Fy Antenaina"]
[Black "Adhiban, B."]
[WhiteFideId "13100050"]
[BlackFideId "5018471"]
[WhiteElo "2427"]
[BlackElo "2587"]
[Result "1/2-1/2"]
[Round "09"]
[TimeControl "180+2"]
[Date "2023.05.09"]
[WhiteClock "0:00:10"]
[BlackClock "0:01:39"]

1. e4 {[%clk 0:02:56]}  c6 {[%clk 0:02:59]} 2. Nf3 {[%clk 0:02:56]}  d5 {[%clk 0:03:00]} 3. d3 {[%clk 0:02:56]}  dxe4 {[%clk 0:03:00]} 4. dxe4 {[%clk 0:02:57]}  Qxd1+ {[%clk 0:03:01]} 5. Kxd1 {[%clk 0:02:58]}  Nf6 {[%clk 0:03:01]} 6. Nbd2 {[%clk 0:02:58]}  g6 {[%clk 0:03:01]} 7. Ne5 {[%clk 0:02:58]}  Bg7 {[%clk 0:03:01]} 8. Nd3 {[%clk 0:02:58]}  a5 {[%clk 0:03:00]} 9. a4 {[%clk 0:02:57]}  Be6 {[%clk 0:02:47]} 10. Nc5 {[%clk 0:02:52]}  Bc8 {[%clk 0:02:47]} 11. f3 {[%clk 0:02:51]}  Nbd7 {[%clk 0:02:47]} 12. Nd3 {[%clk 0:02:45]}  b6 {[%clk 0:02:48]} 13. c3 {[%clk 0:02:44]}  Ba6 {[%clk 0:02:47]} 14. Kc2 {[%clk 0:02:45]}  O-O-O {[%clk 0:02:47]} 15. Nb3 {[%clk 0:02:39]}  h5 {[%clk 0:02:44]} 16. Be3 {[%clk 0:02:27]}  h4 {[%clk 0:02:41]} 17. Be2 {[%clk 0:02:11]}  Bh6 {[%clk 0:02:36]} 18. Bxh6 {[%clk 0:02:06]}  Rxh6 {[%clk 0:02:37]} 19. Rhd1 {[%clk 0:02:04]}  Nh5 {[%clk 0:02:36]} 20. Nd4 {[%clk 0:01:56]}  Kc7 {[%clk 0:02:33]} 21. b4 {[%clk 0:01:56]}  Bxd3+ {[%clk 0:02:26]} 22. Bxd3 {[%clk 0:01:55]}  Nf4 {[%clk 0:02:27]} 23. Bf1 {[%clk 0:01:53]}  Ne5 {[%clk 0:02:23]} 24. bxa5 {[%clk 0:01:51]}  bxa5 {[%clk 0:02:23]} 25. Nb3 {[%clk 0:01:51]}  Ra8 {[%clk 0:02:17]} 26. Rab1 {[%clk 0:01:45]}  g5 {[%clk 0:02:13]} 27. Nc5 {[%clk 0:01:43]}  Rd6 {[%clk 0:02:01]} 28. Rb7+ {[%clk 0:01:36]}  Kd8 {[%clk 0:02:01]} 29. Rdb1 {[%clk 0:01:26]}  g4 {[%clk 0:01:39]} 30. Rb8+ {[%clk 0:00:17]}  Rxb8 {[%clk 0:01:39]} 31. Rxb8+ {[%clk 0:00:18]}  Kc7 {[%clk 0:01:39]} 32. Na6+ {[%clk 0:00:19]}  Kd7 {[%clk 0:01:40]} 33. Nc5+ {[%clk 0:00:16]}  Kc7 {[%clk 0:01:39]} 34. Na6+ {[%clk 0:00:11]}  Kd7 {[%clk 0:01:40]} 35. Nc5+ {[%clk 0:00:10]}  Kc7 {[%clk 0:01:39]} 1/2-1/2


[Site "https://www.chess.com"]

[Event "Titled Tuesday Blitz May 9 Early 2023"]
[White "Pranav, V"]
[Black "MKlose11"]
[WhiteFideId "25060783"]
[WhiteElo "2515"]
[BlackElo "2608"]
[Result "1-0"]
[Round "09"]
[TimeControl "180+2"]
[Date "2023.05.09"]
[WhiteClock "0:00:38"]
[BlackClock "0:00:09"]

1. e4 {[%clk 0:03:00]}  e6 {[%clk 0:02:47]} 2. d3 {[%clk 0:03:00]}  d5 {[%clk 0:02:46]} 3. Nd2 {[%clk 0:03:00]}  Nf6 {[%clk 0:02:45]} 4. e5 {[%clk 0:02:59]}  Nfd7 {[%clk 0:02:45]} 5. Ngf3 {[%clk 0:02:59]}  c5 {[%clk 0:02:44]} 6. c3 {[%clk 0:02:55]}  Nc6 {[%clk 0:02:43]} 7. d4 {[%clk 0:02:55]}  cxd4 {[%clk 0:02:43]} 8. cxd4 {[%clk 0:02:55]}  Be7 {[%clk 0:02:42]} 9. Bd3 {[%clk 0:02:55]}  a5 {[%clk 0:02:40]} 10. O-O {[%clk 0:02:55]}  Qb6 {[%clk 0:02:40]} 11. Qa4 {[%clk 0:02:49]}  Qb4 {[%clk 0:02:39]} 12. Bb5 {[%clk 0:02:42]}  Qxa4 {[%clk 0:02:38]} 13. Bxa4 {[%clk 0:02:42]}  Nb6 {[%clk 0:02:37]} 14. Bb5 {[%clk 0:02:39]}  Bd7 {[%clk 0:02:37]} 15. a3 {[%clk 0:02:37]}  Nxe5 {[%clk 0:02:31]} 16. Bxd7+ {[%clk 0:02:34]}  Nexd7 {[%clk 0:02:30]} 17. Rd1 {[%clk 0:02:31]}  O-O {[%clk 0:02:25]} 18. Nf1 {[%clk 0:02:31]}  Rfc8 {[%clk 0:02:25]} 19. Bd2 {[%clk 0:02:28]}  Nc4 {[%clk 0:02:18]} 20. Bc1 {[%clk 0:02:24]}  a4 {[%clk 0:02:16]} 21. h4 {[%clk 0:02:20]}  h6 {[%clk 0:02:13]} 22. Re1 {[%clk 0:02:10]}  Na5 {[%clk 0:02:03]} 23. Ne3 {[%clk 0:02:08]}  Bd6 {[%clk 0:02:00]} 24. Bd2 {[%clk 0:02:03]}  Nb3 {[%clk 0:02:01]} 25. Rad1 {[%clk 0:02:02]}  Nxd2 {[%clk 0:01:55]} 26. Rxd2 {[%clk 0:02:00]}  Ra6 {[%clk 0:01:54]} 27. g3 {[%clk 0:01:58]}  Rac6 {[%clk 0:01:49]} 28. Rdd1 {[%clk 0:01:57]}  Nb6 {[%clk 0:01:47]} 29. Nd2 {[%clk 0:01:55]}  Kf8 {[%clk 0:01:41]} 30. Kf1 {[%clk 0:01:55]}  Be7 {[%clk 0:01:38]} 31. Nf3 {[%clk 0:01:49]}  Nc4 {[%clk 0:01:37]} 32. Nxc4 {[%clk 0:01:38]}  Rxc4 {[%clk 0:01:34]} 33. Ne5 {[%clk 0:01:39]}  Rc2 {[%clk 0:01:34]} 34. Nd7+ {[%clk 0:01:39]}  Ke8 {[%clk 0:01:24]} 35. Nb6 {[%clk 0:01:32]}  R8c6 {[%clk 0:00:56]} 36. Nxa4 {[%clk 0:01:30]}  b5 {[%clk 0:00:47]} 37. Nc3 {[%clk 0:01:30]}  Rxb2 {[%clk 0:00:46]} 38. Re3 {[%clk 0:01:31]}  Rb3 {[%clk 0:00:28]} 39. Nxd5 {[%clk 0:01:29]}  Rxe3 {[%clk 0:00:28]} 40. Nxe3 {[%clk 0:01:27]}  Bxa3 {[%clk 0:00:28]} 41. d5 {[%clk 0:01:28]}  exd5 {[%clk 0:00:20]} 42. Rxd5 {[%clk 0:01:28]}  Bc5 {[%clk 0:00:21]} 43. Nf5 {[%clk 0:01:28]}  g6 {[%clk 0:00:16]} 44. Nxh6 {[%clk 0:01:24]}  b4 {[%clk 0:00:16]} 45. Rd3 {[%clk 0:01:24]}  Rb6 {[%clk 0:00:10]} 46. Rb3 {[%clk 0:01:23]}  Ke7 {[%clk 0:00:10]} 47. Ng4 {[%clk 0:01:23]}  Kd6 {[%clk 0:00:10]} 48. Ke2 {[%clk 0:01:17]}  Kd5 {[%clk 0:00:09]} 49. Rd3+ {[%clk 0:01:04]}  Kc4 {[%clk 0:00:07]} 50. Ne5+ {[%clk 0:01:04]}  Kb5 {[%clk 0:00:08]} 51. f4 {[%clk 0:00:59]}  Ka4 {[%clk 0:00:04]} 52. Kd2 {[%clk 0:00:39]}  b3 {[%clk 0:00:04]} 53. Kc1 {[%clk 0:00:37]}  Ba3+ {[%clk 0:00:04]} 54. Kb1 {[%clk 0:00:38]}  f6 {[%clk 0:00:04]} 55. Rd4+ {[%clk 0:00:35]}  Bb4 {[%clk 0:00:03]} 56. Nd3 {[%clk 0:00:33]}  Rb5 {[%clk 0:00:04]} 57. f5 {[%clk 0:00:32]}  Rxf5 {[%clk 0:00:02]} 58. Rxb4+ {[%clk 0:00:29]}  Ka3 {[%clk 0:00:02]} 59. Rf4 {[%clk 0:00:30]}  Rxf4 {[%clk 0:00:02]} 60. Nxf4 {[%clk 0:00:30]}  g5 {[%clk 0:00:03]} 61. h5 {[%clk 0:00:30]}  gxf4 {[%clk 0:00:02]} 62. gxf4 {[%clk 0:00:31]}  b2 {[%clk 0:00:02]} 63. h6 {[%clk 0:00:31]}  Kb3 {[%clk 0:00:03]} 64. h7 {[%clk 0:00:32]}  Kc3 {[%clk 0:00:04]} 65. h8=Q {[%clk 0:00:33]}  Kd4 {[%clk 0:00:05]} 66. Qxf6+ {[%clk 0:00:33]}  Ke4 {[%clk 0:00:06]} 67. Qe5+ {[%clk 0:00:34]}  Kd3 {[%clk 0:00:07]} 68. f5 {[%clk 0:00:35]}  Kc4 {[%clk 0:00:07]} 69. f6 {[%clk 0:00:36]}  Kd3 {[%clk 0:00:08]} 70. f7 {[%clk 0:00:37]}  Kc4 {[%clk 0:00:09]} 71. f8=Q {[%clk 0:00:37]}  Kd3 {[%clk 0:00:10]} 72. Qf1+ {[%clk 0:00:37]}  Kd2 {[%clk 0:00:09]} 73. Qfe2# {[%clk 0:00:38]} 1-0


[Site "https://www.chess.com"]